fUST/lending_fUST_20240615
["ID","MTS","AMOUNT","RATE_DAILY","PERIOD"]
[329492383,1718392255074,-638.74,0.00016712,2]
[329492385,1718392255092,-539.16195675,0.00016712,2]
[329492387,1718392255106,-500.0,0.00016712,2]
[329492389,1718392255119,-500.0,0.00016712,2]
[329492392,1718392255162,-307.45743825,0.00016712,2]
[329492394,1718392255188,-500.0,0.00016712,2]
[329492396,1718392255209,-500.0,0.00016712,2]
[329492398,1718392255219,-500.0,0.00016712,2]
[329492400,1718392255245,-500.0,0.00016712,2]
[329492401,1718392255258,-500.0,0.00016712,2]
[329492403,1718392255276,-500.0,0.00016712,2]
[329492405,1718392255312,-500.0,0.00016712,2]
[329492407,1718392255331,-500.0,0.00016712,2]
[329492409,1718392255344,-500.0,0.00016712,2]
[329492411,1718392255361,-166.1600623,0.00016712,2]
[329492413,1718392255384,-500.0,0.00016712,2]
[329492415,1718392255402,-500.0,0.00016712,2]
[329492417,1718392255418,-500.0,0.00016712,2]
[329492419,1718392255450,-500.0,0.00016712,2]
[329492420,1718392255478,-500.0,0.00016712,2]
[329492423,1718392255496,-500.0,0.00016712,2]
[329492424,1718392255518,-500.0,0.00016712,2]
[329492426,1718392255532,-500.0,0.00016712,2]
[329492428,1718392255549,-500.0,0.00016712,2]
[329492431,1718392255567,-500.0,0.00016712,2]
[329492434,1718392255599,-22594.49,0.00016712,2]
[329492436,1718392255614,-500.0,0.00016712,2]
[329492438,1718392255634,-500.0,0.00016712,2]
[329492439,1718392255648,-708.25,0.00016712,2]
[329492441,1718392255661,-745.65,0.00016712,2]
[329492443,1718392255674,-500.0,0.00016712,2]
[329492446,1718392255695,-1603.57,0.00016712,2]
[329492448,1718392255711,-500.0,0.00016712,2]
[329492452,1718392255736,-308.65,0.00016712,2]
[329492454,1718392255763,-2204.66,0.00016712,2]
[329492456,1718392255775,-500.0,0.00016712,2]
[329492457,1718392255802,-2985.47,0.00016712,2]
[329492459,1718392255823,-617.85,0.00016712,2]
[329492461,1718392255835,-500.0,0.00016712,2]
[329492462,1718392255850,-902.35,0.00016712,2]
[329492464,1718392255862,-12400.04,0.00016712,2]
[329492466,1718392255874,-2783.4,0.00016712,2]
[329492467,1718392255887,-500.0,0.00016712,2]
[329492469,1718392255901,-500.0,0.00016712,2]
[329492471,1718392255915,-500.0,0.00016712,2]
[329492473,1718392255941,-500.0,0.00016712,2]
[329492475,1718392255964,-500.0,0.00016712,2]
[329492477,1718392255996,-500.0,0.00016712,2]
[329492478,1718392256009,-500.0,0.00016712,2]
[329492480,1718392256022,-500.0,0.00016712,2]
[329492482,1718392256036,-500.0,0.00016712,2]
[329492484,1718392256049,-500.0,0.00016712,2]
[329492486,1718392256062,-500.0,0.00016712,2]
[329492489,1718392256082,-500.0,0.00016712,2]
[329492491,1718392256134,-802.03,0.00016712,2]
[329492494,1718392256157,-500.0,0.00016712,2]
[329492496,1718392256168,-500.0,0.00016712,2]
[329492498,1718392256181,-500.0,0.00016712,2]
[329492500,1718392256196,-4789.17,0.00016712,2]
[329492502,1718392256211,-5147.08,0.00016712,2]
[329492504,1718392256229,-587.91725964,0.00016712,2]
[329492506,1718392256261,-500.0,0.00016712,2]
[329492509,1718392256286,-500.0,0.00016712,2]
[329492511,1718392256311,-500.0,0.00016712,2]
[329492513,1718392256330,-500.0,0.00016712,2]
[329492515,1718392256379,-500.0,0.00016712,2]
[329492517,1718392256391,-1038.38,0.00016712,2]
[329492519,1718392256412,-500.0,0.00016712,2]
[329492521,1718392256438,-500.0,0.00016712,2]
[329492522,1718392256452,-616.58,0.00016712,2]
[329492523,1718392256464,-500.0,0.00016712,2]
[329492525,1718392256476,-500.0,0.00016712,2]
[329492527,1718392256494,-500.0,0.00016712,2]
[329492528,1718392256511,-500.0,0.00016712,2]
[329492530,1718392256532,-1346.86,0.00016712,2]
[329492531,1718392256543,-500.0,0.00016712,2]
[329492533,1718392256557,-500.0,0.00016712,2]
[329492535,1718392256577,-500.0,0.00016712,2]
[329492537,1718392256593,-500.0,0.00016712,2]
[329492538,1718392256607,-500.0,0.00016712,2]
[329492541,1718392256625,-500.0,0.00016712,2]
[329492543,1718392256648,-1201.24,0.00016712,2]
[329492546,1718392256677,-5807.23,0.00016712,2]
[329492548,1718392256705,-500.0,0.00016712,2]
[329492551,1718392256735,-500.0,0.00016712,2]
[329492553,1718392256758,-500.0,0.00016712,2]
[329492554,1718392256772,-500.0,0.00016712,2]
[329492556,1718392256791,-500.0,0.00016712,2]
[329492558,1718392256810,-500.0,0.00016712,2]
[329492560,1718392256828,-500.0,0.00016712,2]
[329492563,1718392256847,-500.0,0.00016712,2]
[329492565,1718392256867,-500.0,0.00016712,2]
[329492573,1718392256972,-666.48855056,0.0001677,2]
[329492575,1718392256985,-500.0,0.00016985,2]
[329492577,1718392257000,-500.0,0.00016985,2]
[329492579,1718392257028,-500.0,0.00016985,2]
[329492581,1718392257063,-513.96,0.00016985,2]
[329492582,1718392257075,-513.96,0.00016985,2]
[329492584,1718392257100,-513.96,0.00016985,2]
[329492585,1718392257117,-500.0,0.00016986,2]
[329492587,1718392257133,-500.0,0.00016986,4]
[329492589,1718392257149,-500.0,0.00016986,2]
[329492590,1718392257180,-559.42,0.00016986,2]
[329492592,1718392257205,-500.0,0.00016986,2]
[329492594,1718392257235,-543.56623276,0.00016986,2]
[329492596,1718392257247,-500.0,0.00016986,2]
[329492598,1718392257281,-500.0,0.00016986,2]
[329492599,1718392257296,-500.0,0.00016986,2]
[329492601,1718392257323,-500.0,0.00016986,2]
[329492603,1718392257337,-500.8717857,0.00016986,2]
[329492605,1718392257360,-500.0,0.00016986,2]
[329492606,1718392257400,-500.0,0.00016986,2]
[329492607,1718392257418,-500.0,0.00016986,2]
[329492608,1718392257438,-500.0,0.00016986,2]
[329492609,1718392257463,-500.0,0.00016986,2]
[329492610,1718392257512,-302.67564077,0.00016986,2]
[329492611,1718392257525,-500.0,0.00016986,2]
[329492612,1718392257544,-500.0,0.00016986,2]
[329492614,1718392257557,-648.62392539,0.00016986,2]
[329492616,1718392257580,-500.0,0.00016986,2]
[329492618,1718392257603,-500.0,0.00016986,2]
[329492620,1718392257624,-500.0,0.00016986,2]
[329492621,1718392257636,-500.0,0.00016986,2]
[329492624,1718392257652,-500.0,0.00016986,2]
[329492625,1718392257665,-500.0,0.00016986,2]
[329492627,1718392257677,-500.0,0.00016986,2]
[329492629,1718392257689,-500.0,0.00016986,2]
[329492631,1718392257703,-562.13,0.00016986,2]
[329492633,1718392257720,-500.0,0.00016986,2]
[329492635,1718392257735,-500.0,0.00016986,2]
[329492637,1718392257754,-500.0,0.00016986,2]
[329492639,1718392257779,-500.0,0.00016986,2]
[329492640,1718392257807,-500.0,0.00016986,2]
[329492642,1718392257836,-500.0,0.00016986,2]
[329492644,1718392257853,-500.0,0.00016986,2]
[329492646,1718392257883,-500.0,0.00016986,2]
[329492648,1718392257908,-500.0,0.00016986,2]
[329492651,1718392257924,-500.0,0.00016986,2]
[329492653,1718392257942,-500.0,0.00016986,2]
[329492655,1718392257966,-280.91,0.00016986,2]
[329492657,1718392257996,-500.0,0.00016986,2]
[329492659,1718392258025,-500.0,0.00016986,2]
[329492661,1718392258048,-500.0,0.00016986,2]
[329492663,1718392258091,-500.0,0.00016986,2]
[329492665,1718392258110,-500.0,0.00016986,2]
[329492667,1718392258125,-638.74,0.00016986,2]
[329492669,1718392258138,-500.0,0.00016986,2]
[329492671,1718392258163,-500.0,0.00016986,2]
[329492674,1718392258183,-500.0,0.00016986,2]
[329492676,1718392258198,-500.0,0.00016986,2]
[329492679,1718392258240,-500.0,0.00016986,2]
[329492682,1718392258296,-500.0,0.00016986,2]
[329492684,1718392258313,-500.0,0.00016986,2]
[329492685,1718392258330,-500.0,0.00016986,2]
[329492686,1718392258350,-500.0,0.00016986,2]
[329492687,1718392258362,-500.0,0.00016986,2]
[329492689,1718392258378,-500.0,0.00016986,2]
[329492691,1718392258397,-500.0,0.00016986,2]
[329492695,1718392258457,-500.0,0.00016986,2]
[329492696,1718392258479,-22594.49,0.00016986,2]
[329492698,1718392258520,-275.34,0.00016986,2]
[329492700,1718392258556,-500.0,0.00016986,2]
[329492702,1718392258582,-708.25,0.00016986,2]
[329492703,1718392258609,-745.65,0.00016986,2]
[329492705,1718392258625,-500.0,0.00016986,2]
[329492707,1718392258640,-1603.57,0.00016986,2]
[329492709,1718392258669,-500.0,0.00016986,2]
[329492711,1718392258713,-2204.66,0.00016986,2]
[329492712,1718392258734,-500.0,0.00016986,2]
[329492714,1718392258750,-2985.47,0.00016986,2]
[329492716,1718392258772,-617.85,0.00016986,2]
[329492718,1718392258784,-500.0,0.00016986,2]
[329492720,1718392258799,-902.35,0.00016986,2]
[329492722,1718392258812,-12400.04,0.00016986,2]
[329492724,1718392258823,-2783.4,0.00016986,2]
[329492725,1718392258835,-500.0,0.00016986,2]
[329492727,1718392258850,-370.28437946,0.00016986,2]
[329492729,1718392258862,-500.0,0.00016986,2]
[329492730,1718392258873,-500.0,0.00016986,2]
[329492732,1718392258892,-500.0,0.00016986,2]
[329492735,1718392258904,-500.0,0.00016986,2]
[329492737,1718392258928,-500.0,0.00016986,2]
[329492739,1718392258940,-500.0,0.00016986,2]
[329492741,1718392258987,-500.0,0.00016986,2]
[329492743,1718392258999,-500.0,0.00016986,2]
[329492744,1718392259012,-500.0,0.00016986,2]
[329492746,1718392259031,-802.03,0.00016986,2]
[329492748,1718392259045,-500.0,0.00016986,2]
[329492750,1718392259075,-500.0,0.00016986,2]
[329492752,1718392259101,-4789.17,0.00016986,2]
[329492754,1718392259126,-5147.08,0.00016986,2]
[329492756,1718392259146,-500.0,0.00016986,2]
[329492758,1718392259164,-500.0,0.00016986,2]
[329492761,1718392259194,-500.0,0.00016986,2]
[329492763,1718392259210,-1038.38,0.00016986,2]
[329492764,1718392259223,-500.0,0.00016986,2]
[329492766,1718392259241,-500.0,0.00016986,2]
[329492768,1718392259255,-616.58,0.00016986,2]
[329492770,1718392259270,-500.0,0.00016986,2]
[329492772,1718392259287,-347.012321,0.00016986,2]
[329492774,1718392259305,-500.0,0.00016986,2]
[329492776,1718392259333,-941.86034493,0.00016986,2]
[329492782,1718392259478,-404.99965507,0.00016986,2]
[329492783,1718392259493,-500.0,0.00016986,2]
[329492785,1718392259505,-500.0,0.00016986,2]
[329492787,1718392259535,-500.0,0.00016986,2]
[329492789,1718392259552,-500.0,0.00016986,2]
[329492790,1718392259573,-500.0,0.00016986,2]
[329492792,1718392259599,-500.0,0.00016986,2]
[329492795,1718392259621,-1201.24,0.00016986,2]
[329492796,1718392259632,-3564.75052693,0.00016986,2]
[329492798,1718392259646,-2242.47947307,0.00016986,2]
[329492800,1718392259661,-500.0,0.00016986,2]
[329492803,1718392259701,-500.0,0.00016986,2]
[329492805,1718392259722,-500.0,0.00016986,2]
[329492807,1718392259737,-500.0,0.00016986,2]
[329492809,1718392259756,-500.0,0.00016986,2]
[329492811,1718392259776,-306.0,0.00017123,2]
[329492813,1718392259815,-500.0,0.00017259,2]
[329492815,1718392259845,-500.0,0.00017259,2]
[329492819,1718392259930,-513.96,0.00017259,2]
[329492820,1718392259945,-513.96,0.00017259,2]
[329492822,1718392259974,-513.96,0.00017259,2]
[329492823,1718392259995,-500.0,0.0001726,2]
[329492825,1718392260030,-153.66282,0.0001726,2]
[329492828,1718392260096,-500.0,0.0001726,4]
[329492830,1718392260132,-631.91,0.0001726,2]
[329492831,1718392260149,-500.0,0.0001726,2]
[329492833,1718392260182,-500.0,0.0001726,2]
[329492835,1718392260209,-500.0,0.0001726,2]
[329492837,1718392260230,-500.0,0.0001726,2]
[329492840,1718392260311,-500.0,0.0001726,2]
[329492842,1718392260327,-500.0,0.0001726,2]
[329492844,1718392260346,-500.0,0.0001726,2]
[329492847,1718392260373,-500.0,0.0001726,2]
[329492849,1718392260391,-500.0,0.0001726,2]
[329492851,1718392260402,-500.0,0.0001726,2]
[329492853,1718392260428,-500.0,0.0001726,2]
[329492855,1718392260443,-500.0,0.0001726,2]
[329492858,1718392260472,-193.29,0.0001726,2]
[329492860,1718392260528,-562.13,0.0001726,2]
[329492862,1718392260540,-500.0,0.0001726,2]
[329492864,1718392260570,-500.0,0.0001726,2]
[329492865,1718392260584,-500.0,0.0001726,2]
[329492868,1718392260630,-518.66,0.0001726,2]
[329492869,1718392260642,-500.0,0.0001726,2]
[329492871,1718392260657,-500.0,0.0001726,2]
[329492873,1718392260668,-500.0,0.0001726,2]
[329492874,1718392260700,-500.0,0.0001726,2]
[329492876,1718392260712,-500.0,0.0001726,2]
[329492878,1718392260725,-500.0,0.0001726,2]
[329492879,1718392260739,-500.0,0.0001726,2]
[329492881,1718392260755,-638.74,0.0001726,2]
[329492883,1718392260771,-500.0,0.0001726,2]
[329492885,1718392260788,-500.0,0.0001726,2]
[329492886,1718392260802,-417.96691704,0.0001726,2]
[329492888,1718392260823,-500.0,0.0001726,2]
[329492890,1718392260852,-500.0,0.0001726,2]
[329492892,1718392260863,-500.0,0.0001726,2]
[329492894,1718392260875,-500.0,0.0001726,2]
[329492896,1718392260889,-543.67851361,0.0001726,2]
[329492899,1718392260929,-500.0,0.0001726,2]
[329492902,1718392260968,-500.0,0.0001726,2]
[329492904,1718392261027,-500.0,0.0001726,2]
[329492905,1718392261069,-500.0,0.0001726,2]
[329492906,1718392261100,-500.0,0.0001726,2]
[329492908,1718392261112,-15477.76890858,0.0001726,2]
[329492915,1718392261274,-7116.72109142,0.0001726,2]
[329492917,1718392261316,-500.0,0.0001726,2]
[329492920,1718392261350,-708.25,0.0001726,2]
[329492922,1718392261362,-745.65,0.0001726,2]
[329492924,1718392261404,-222.98,0.0001726,2]
[329492926,1718392261440,-865.89890858,0.0001726,2]
[329492927,1718392261470,-737.67109142,0.0001726,2]
[329492929,1718392261491,-500.0,0.0001726,2]
[329492931,1718392261524,-2204.66,0.0001726,2]
[329492934,1718392261560,-500.0,0.0001726,2]
[329492935,1718392261571,-2985.47,0.0001726,2]
[329492937,1718392261586,-617.85,0.0001726,2]
[329492939,1718392261605,-500.0,0.0001726,2]
[329492941,1718392261617,-902.35,0.0001726,2]
[329492943,1718392261628,-12400.04,0.0001726,2]
[329492946,1718392261641,-2783.4,0.0001726,2]
[329492947,1718392261690,-500.0,0.0001726,2]
[329492949,1718392261702,-500.0,0.0001726,2]
[329492951,1718392261713,-500.0,0.0001726,2]
[329492953,1718392261726,-500.0,0.0001726,2]
[329492956,1718392261746,-500.0,0.0001726,2]
[329492958,1718392261780,-615.42346291,0.0001726,2]
[329492960,1718392261809,-534.39,0.0001726,2]
[329492963,1718392261860,-500.0,0.0001726,2]
[329492965,1718392261880,-555.37047904,0.0001726,2]
[329492967,1718392261894,-802.03,0.0001726,2]
[329492975,1718392261907,-500.0,0.0001726,2]
[329492977,1718392262074,-500.0,0.0001726,2]
[329492979,1718392262126,-4789.17,0.0001726,2]
[329492981,1718392262174,-5147.08,0.0001726,2]
[329492983,1718392262206,-506.90073842,0.0001726,2]
[329492985,1718392262218,-1038.38,0.0001726,2]
[329492986,1718392262250,-398.02,0.0001726,2]
[329492988,1718392262262,-616.58,0.0001726,2]
[329492990,1718392262277,-595.78,0.0001726,2]
[329492992,1718392262301,-500.0,0.0001726,2]
[329492994,1718392262336,-1346.86,0.0001726,2]
[329492997,1718392262359,-291.36493378,0.0001726,2]
[329492999,1718392262382,-208.63506622,0.0001726,2]
[329493001,1718392262416,-500.0,0.0001726,2]
[329493003,1718392262427,-500.0,0.0001726,2]
[329493005,1718392262440,-500.0,0.0001726,2]
[329493007,1718392262451,-660.20944424,0.0001726,2]
[329493009,1718392262478,-541.03055576,0.0001726,2]
[329493011,1718392262515,-832.57074103,0.0001726,2]
[329493012,1718392262542,-4974.65925897,0.0001726,2]
[329493014,1718392262566,-500.0,0.0001726,2]
[329493016,1718392262584,-500.0,0.0001726,2]
[329493017,1718392262617,-350.70549292,0.0001726,2]
[329493020,1718392262628,-360.5,0.00017283,2]
[329493022,1718392262644,-160.8,0.00017283,2]
[329493024,1718392262655,-360.5,0.00017429,2]
[329493026,1718392262666,-160.8,0.00017429,2]
[329493028,1718392262688,-500.0,0.00017529,2]
[329493030,1718392262712,-3077.35790482,0.0001753,4]
[329493032,1718392262723,-256.80981077,0.00017532,2]
[329493034,1718392262735,-163.40383577,0.00017532,2]
[329493036,1718392262747,-164.5734904,0.00017533,2]
[329493037,1718392262758,-500.0,0.00017533,2]
[329493039,1718392262776,-500.0,0.00017533,2]
[329493041,1718392262788,-513.96,0.00017533,2]
[329493042,1718392262799,-513.96,0.00017533,2]
[329493044,1718392262832,-500.0,0.00017534,4]
[329493046,1718392262849,-500.0,0.00017534,2]
[329493047,1718392262860,-500.0,0.00017534,2]
[329493048,1718392262872,-500.0,0.00017534,2]
[329493051,1718392262913,-500.0,0.00017534,2]
[329493053,1718392262939,-500.0,0.00017534,2]
[329493055,1718392262952,-500.0,0.00017534,2]
[329493056,1718392262963,-500.0,0.00017534,2]
[329493058,1718392262974,-500.0,0.00017534,2]
[329493060,1718392262987,-500.0,0.00017534,2]
[329493062,1718392262997,-562.13,0.00017534,2]
[329493064,1718392263037,-205.14544281,0.00017534,2]
[329493066,1718392263072,-500.0,0.00017534,2]
[329493069,1718392263098,-500.0,0.00017534,2]
[329493070,1718392263124,-500.0,0.00017534,2]
[329493072,1718392263136,-500.0,0.00017534,2]
[329493075,1718392263220,-524.71439149,0.00017534,2]
[329493077,1718392263233,-500.0,0.00017534,2]
[329493079,1718392263257,-638.74,0.00017534,2]
[329493081,1718392263274,-500.0,0.00017534,2]
[329493082,1718392263298,-500.0,0.00017534,2]
[329493085,1718392263330,-500.0,0.00017534,2]
[329493087,1718392263365,-22594.49,0.00017534,2]
[329493089,1718392263379,-708.25,0.00017534,2]
[329493091,1718392263396,-745.65,0.00017534,2]
[329493093,1718392263412,-1603.57,0.00017534,2]
[329493094,1718392263429,-500.0,0.00017534,2]
[329493096,1718392263466,-2204.66,0.00017534,2]
[329493098,1718392263478,-500.0,0.00017534,2]
[329493099,1718392263508,-2985.47,0.00017534,2]
[329493101,1718392263533,-617.85,0.00017534,2]
[329493103,1718392263552,-500.0,0.00017534,2]
[329493106,1718392263604,-902.35,0.00017534,2]
[329493108,1718392263625,-12400.04,0.00017534,2]
[329493110,1718392263635,-2783.4,0.00017534,2]
[329493111,1718392263646,-500.0,0.00017534,2]
[329493112,1718392263668,-500.0,0.00017534,2]
[329493114,1718392263680,-500.0,0.00017534,2]
[329493116,1718392263692,-357.3445098,0.00017534,2]
[329493118,1718392263707,-142.6554902,0.00017534,2]
[329493120,1718392263720,-802.03,0.00017534,2]
[329493121,1718392263731,-226.63381427,0.00017534,2]
[329493123,1718392263753,-500.0,0.00017534,2]
[329493125,1718392263763,-4789.17,0.00017534,2]
[329493127,1718392263787,-5147.08,0.00017534,2]
[329493128,1718392263797,-1038.38,0.00017534,2]
[329493130,1718392263824,-616.58,0.00017534,2]
[329493132,1718392263868,-500.0,0.00017534,2]
[329493135,1718392263897,-473.07069553,0.00017534,2]
[329493138,1718392263938,-873.78930447,0.00017534,2]
[329493139,1718392263950,-500.0,0.00017534,2]
[329493142,1718392263972,-500.0,0.00017534,2]
[329493143,1718392263996,-1201.24,0.00017534,2]
[329493145,1718392264029,-5807.23,0.00017534,2]
[329493147,1718392264047,-531.72989292,0.00017534,2]
[329493148,1718392264066,-360.5,0.00017574,2]
[329493150,1718392264088,-160.8,0.00017574,2]
[329493153,1718392264114,-622.32442753,0.00017609,2]
[329493155,1718392264131,-360.5,0.00017719,2]
[329493157,1718392264145,-160.8,0.00017719,2]
[329493158,1718392264157,-388.3,0.00017807,2]
[329493160,1718392264170,-513.96,0.00017807,2]
[329493162,1718392264189,-513.96,0.00017807,2]
[329493164,1718392264205,-500.0,0.00017808,4]
[329493166,1718392264235,-500.0,0.00017808,2]
[329493168,1718392264264,-500.0,0.00017808,2]
[329493169,1718392264282,-500.0,0.00017808,2]
[329493171,1718392264294,-500.0,0.00017808,2]
[329493173,1718392264305,-538.38,0.00017808,2]
[329493175,1718392264347,-377.90220211,0.00017808,2]
[329493176,1718392264358,-500.0,0.00017808,2]
[329493179,1718392264397,-562.13,0.00017808,2]
[329493181,1718392264417,-500.0,0.00017808,2]
[329493183,1718392264434,-500.0,0.00017808,2]
[329493185,1718392264451,-500.0,0.00017808,2]
[329493187,1718392264483,-500.0,0.00017808,2]
[329493190,1718392264514,-500.0,0.00017808,2]
[329493193,1718392264535,-638.74,0.00017808,2]
[329493195,1718392264573,-500.0,0.00017808,2]
[329493197,1718392264598,-500.0,0.00017808,2]
[329493199,1718392264615,-500.0,0.00017808,2]
[329493201,1718392264632,-22594.49,0.00017808,2]
[329493204,1718392264656,-708.25,0.00017808,2]
[329493206,1718392264689,-745.65,0.00017808,2]
[329493208,1718392264709,-1603.57,0.00017808,2]
[329493210,1718392264727,-325.425589,0.00017808,2]
[329493212,1718392264750,-2204.66,0.00017808,2]
[329493214,1718392264782,-500.0,0.00017808,2]
[329493216,1718392264799,-2985.47,0.00017808,2]
[329493219,1718392264820,-617.85,0.00017808,2]
[329493221,1718392264835,-500.0,0.00017808,2]
[329493223,1718392264854,-902.35,0.00017808,2]
[329493225,1718392264871,-12400.04,0.00017808,2]
[329493227,1718392264893,-2783.4,0.00017808,2]
[329493229,1718392264909,-203.42,0.00017808,2]
[329493231,1718392264923,-500.0,0.00017808,2]
[329493233,1718392264940,-500.0,0.00017808,2]
[329493235,1718392264962,-500.0,0.00017808,2]
[329493237,1718392264980,-802.03,0.00017808,2]
[329493240,1718392265000,-500.0,0.00017808,2]
[329493242,1718392265017,-4789.17,0.00017808,2]
[329493244,1718392265035,-5147.08,0.00017808,2]
[329493246,1718392265051,-1038.38,0.00017808,2]
[329493247,1718392265067,-616.58,0.00017808,2]
[329493249,1718392265088,-500.0,0.00017808,2]
[329493251,1718392265115,-1346.86,0.00017808,2]
[329493254,1718392265133,-500.0,0.00017808,2]
[329493256,1718392265157,-500.0,0.00017808,2]
[329493258,1718392265172,-1201.24,0.00017808,2]
[329493260,1718392265188,-5807.23,0.00017808,2]
[329493262,1718392265210,-360.5,0.00017864,2]
[329493264,1718392265246,-160.8,0.00017864,2]
[329493266,1718392265273,-242.513,0.00017873,2]
[329493268,1718392265301,-210.286,0.00017873,2]
[329493269,1718392265325,-164.371,0.00017873,2]
[329493272,1718392265380,-513.96,0.00017899,2]
[329493273,1718392265394,-513.96,0.00017899,2]
[329493276,1718392265415,-513.96,0.00017899,2]
[329493278,1718392265436,-513.96,0.00017899,2]
[329493280,1718392265454,-513.96,0.00017899,2]
[329493282,1718392265472,-514.17,0.00017899,2]
[329493285,1718392265498,-499.0,0.000179,2]
[329493288,1718392265539,-31900.31698394,0.00018,2]
[329493289,1718392265557,-160.0,0.00018,2]
[329493292,1718392265571,-360.5,0.00018009,2]
[329493294,1718392265585,-160.8,0.00018009,2]
[329493296,1718392265603,-500.0,0.00018074,7]
[329493297,1718392265630,-500.0,0.00018074,7]
[329493299,1718392265644,-500.0,0.00018074,7]
[329493301,1718392265667,-500.0,0.00018074,7]
[329493303,1718392265682,-500.0,0.00018074,7]
[329493305,1718392265698,-500.0,0.00018074,7]
[329493308,1718392265726,-500.0,0.00018074,7]
[329493310,1718392265740,-500.0,0.00018074,7]
[329493311,1718392265755,-500.0,0.00018074,7]
[329493313,1718392265768,-500.0,0.00018074,7]
[329493314,1718392265790,-500.0,0.00018074,7]
[329493316,1718392265806,-500.0,0.00018074,7]
[329493318,1718392265822,-500.0,0.00018074,7]
[329493320,1718392265839,-500.0,0.00018074,7]
[329493322,1718392265857,-500.0,0.00018074,7]
[329493324,1718392265880,-500.0,0.00018074,7]
[329493327,1718392265924,-510.0,0.00018074,7]
[329493329,1718392265938,-420.0,0.0001808,2]
[329493331,1718392265952,-1502.78020483,0.00018081,2]
[329493332,1718392265967,-500.0,0.00018082,4]
[329493335,1718392266003,-500.0,0.00018082,2]
[329493337,1718392266023,-500.0,0.00018082,2]
[329493339,1718392266038,-500.0,0.00018082,2]
[329493342,1718392266052,-500.0,0.00018082,2]
[329493343,1718392266081,-500.0,0.00018082,2]
[329493345,1718392266099,-562.13,0.00018082,2]
[329493347,1718392266122,-500.0,0.00018082,2]
[329493349,1718392266145,-500.0,0.00018082,2]
[329493351,1718392266162,-500.0,0.00018082,2]
[329493352,1718392266179,-500.0,0.00018082,2]
[329493354,1718392266192,-500.0,0.00018082,2]
[329493356,1718392266209,-638.74,0.00018082,2]
[329493358,1718392266227,-500.0,0.00018082,2]
[329493360,1718392266243,-500.0,0.00018082,2]
[329493361,1718392266281,-500.0,0.00018082,2]
[329493363,1718392266308,-6324.38569552,0.00018082,2]
[329493366,1718392266338,-2417.27003271,0.00018082,2]
[329493368,1718392266355,-13852.83427177,0.00018082,2]
[329493370,1718392266367,-708.25,0.00018082,2]
[329493372,1718392266378,-745.65,0.00018082,2]
[329493374,1718392266390,-1603.57,0.00018082,2]
[329493376,1718392266405,-2204.66,0.00018082,2]
[329493377,1718392266417,-606.71889469,0.00018082,2]
[329493379,1718392266430,-2985.47,0.00018082,2]
[329493381,1718392266442,-617.85,0.00018082,2]